fUSD/lending_fUSD_20250111
["ID","MTS","AMOUNT","RATE_DAILY","PERIOD"]
[348569960,1736626239585,-500.0,0.0001153,2]
[348569962,1736626239594,-500.0,0.0001153,2]
[348569964,1736626239603,-500.0,0.0001153,2]
[348569966,1736626239612,-500.0,0.0001153,2]
[348569968,1736626239621,-500.0,0.0001153,2]
[348569970,1736626239631,-500.0,0.0001153,2]
[348569972,1736626239640,-500.0,0.0001153,2]
[348569974,1736626239650,-500.0,0.0001153,2]
[348569976,1736626239659,-557.95,0.0001153,2]
[348569978,1736626239668,-735.98,0.0001153,2]
[348569980,1736626239677,-928.98,0.0001153,2]
[348569982,1736626239686,-500.0,0.0001153,2]
[348569984,1736626239695,-500.0,0.0001153,2]
[348569986,1736626239704,-500.0,0.0001153,2]
[348569988,1736626239714,-600.71,0.0001153,2]
[348569990,1736626239723,-500.0,0.0001153,2]
[348569992,1736626239734,-500.0,0.0001153,2]
[348569994,1736626239743,-500.0,0.0001153,2]
[348569996,1736626239752,-500.0,0.0001153,2]
[348569998,1736626239761,-500.0,0.0001153,2]
[348570000,1736626239770,-500.0,0.0001153,2]
[348570002,1736626239780,-500.0,0.0001153,2]
[348570004,1736626239789,-500.0,0.00011531,2]
[348570006,1736626239799,-500.0,0.00011531,2]
[348570008,1736626239808,-500.0,0.00011531,2]
[348570010,1736626239817,-547.57,0.00011531,2]
[348570012,1736626239826,-500.0,0.00011531,2]
[348570014,1736626239836,-500.0,0.00011532,2]
[348570016,1736626239845,-634.83,0.00011532,2]
[348570018,1736626239855,-500.0,0.00011532,2]
[348570020,1736626239864,-559.24,0.00011532,2]
[348570022,1736626239877,-735.88,0.00011532,2]
[348570024,1736626239887,-2559.91,0.00011532,2]
[348570026,1736626239896,-500.0,0.00011532,2]
[348570028,1736626239905,-500.0,0.00011532,2]
[348570030,1736626239915,-709.97,0.00011532,2]
[348570032,1736626239924,-500.0,0.00011532,2]
[348570034,1736626239934,-531.06,0.00011532,2]
[348570036,1736626239943,-500.0,0.00011532,2]
[348570038,1736626239953,-500.0,0.00011532,2]
[348570041,1736626239963,-974.88,0.00011547,2]
[348570043,1736626239972,-3000.0,0.0001156,2]
[348570047,1736626239982,-500.0,0.00011579,2]
[348570050,1736626239991,-5000.0,0.0001158,2]
[348570052,1736626240001,-500.0,0.00011602,2]
[348570056,1736626240011,-2000.0,0.00011602,2]
[348570058,1736626240021,-200.0,0.00011602,2]
[348570061,1736626240031,-170.71978,0.00011679,2]
[348570064,1736626240040,-162.259848,0.00011679,2]
[348570067,1736626240049,-500.0,0.00011679,2]
[348570070,1736626240059,-500.0,0.00011679,2]
[348570074,1736626240069,-500.0,0.00011679,2]
[348570076,1736626240078,-199.35,0.00011679,2]
[348570079,1736626240087,-500.0,0.00011679,2]
[348570082,1736626240096,-500.0,0.00011679,2]
[348570085,1736626240106,-500.0,0.00011679,2]
[348570088,1736626240115,-500.0,0.00011679,2]
[348570091,1736626240124,-282.5,0.00011679,2]
[348570094,1736626240133,-500.0,0.00011679,2]
[348570097,1736626240142,-500.0,0.00011679,2]
[348570100,1736626240151,-500.0,0.00011679,2]
[348570103,1736626240160,-267.49,0.00011679,2]
[348570106,1736626240169,-500.0,0.00011679,2]
[348570109,1736626240178,-164.37,0.00011679,2]
[348570112,1736626240188,-500.0,0.00011679,2]
[348570115,1736626240198,-500.0,0.00011679,2]
[348570118,1736626240207,-500.0,0.00011679,2]
[348570121,1736626240215,-500.0,0.00011679,2]
[348570124,1736626240226,-201.59,0.00011679,2]
[348570127,1736626240235,-500.0,0.00011679,2]
[348570130,1736626240245,-500.0,0.00011679,2]
[348570133,1736626240254,-500.0,0.00011679,2]
[348570136,1736626240263,-500.0,0.00011679,2]
[348570139,1736626240272,-471.73894734,0.00011679,2]
[348570141,1736626240280,-500.0,0.00011679,2]
[348570143,1736626240289,-190.84,0.00011679,2]
[348570145,1736626240298,-622.27,0.00011679,2]
[348570147,1736626240307,-452.05,0.00011679,2]
[348570149,1736626240316,-500.0,0.00011679,2]
[348570151,1736626240325,-500.0,0.00011679,2]
[348570153,1736626240335,-500.0,0.00011679,2]
[348570154,1736626240344,-500.0,0.00011679,2]
[348570155,1736626240353,-445.22995733,0.00011679,2]
[348570156,1736626240363,-500.0,0.00011679,2]
[348570157,1736626240372,-500.0,0.00011679,2]
[348570158,1736626240383,-500.0,0.00011679,2]
[348570159,1736626240392,-500.0,0.00011679,2]
[348570160,1736626240404,-500.0,0.00011679,2]
[348570161,1736626240413,-500.0,0.00011679,2]
[348570162,1736626240423,-500.0,0.00011679,2]
[348570163,1736626240432,-500.0,0.00011679,2]
[348570164,1736626240442,-500.0,0.00011679,2]
[348570165,1736626240453,-500.0,0.00011679,2]
[348570166,1736626240462,-578.52,0.00011679,2]
[348570167,1736626240471,-500.0,0.00011679,2]
[348570168,1736626240480,-500.0,0.00011679,2]
[348570169,1736626240489,-500.0,0.00011679,2]
[348570170,1736626240498,-1463.97,0.00011679,2]
[348570171,1736626240507,-500.0,0.00011679,2]
[348570173,1736626240518,-500.0,0.00011679,2]
[348570175,1736626240528,-500.0,0.00011679,2]
[348570177,1736626240537,-583.98,0.00011679,2]
[348570178,1736626240546,-500.0,0.00011679,2]
[348570179,1736626240555,-500.0,0.00011679,2]
[348570180,1736626240564,-931.98,0.00011679,2]
[348570181,1736626240573,-500.0,0.00011679,2]
[348570182,1736626240582,-500.0,0.00011679,2]
[348570184,1736626240591,-2629.95,0.00011679,2]
[348570186,1736626240600,-616.73,0.00011679,2]
[348570188,1736626240609,-873.51,0.00011679,2]
[348570190,1736626240618,-500.0,0.00011679,2]
[348570192,1736626240627,-500.0,0.00011679,2]
[348570194,1736626240636,-500.0,0.00011679,2]
[348570195,1736626240645,-500.0,0.00011679,2]
[348570197,1736626240654,-500.0,0.00011679,2]
[348570199,1736626240664,-500.0,0.00011679,2]
[348570201,1736626240672,-500.0,0.00011679,2]
[348570202,1736626240681,-500.0,0.00011679,2]
[348570203,1736626240690,-513.73,0.00011679,2]
[348570204,1736626240699,-500.0,0.00011679,2]
[348570205,1736626240708,-500.0,0.00011679,2]
[348570206,1736626240717,-500.0,0.00011679,2]
[348570207,1736626240727,-500.0,0.00011679,2]
[348570208,1736626240737,-500.0,0.00011679,2]
[348570209,1736626240746,-500.0,0.00011679,2]
[348570210,1736626240755,-534.91,0.00011679,2]
[348570211,1736626240766,-500.0,0.00011679,2]
[348570212,1736626240777,-500.0,0.00011679,2]
[348570213,1736626240788,-1529.45,0.00011679,2]
[348570214,1736626240798,-500.0,0.00011679,2]
[348570215,1736626240809,-500.0,0.00011679,2]
[348570216,1736626240819,-500.0,0.00011679,2]
[348570217,1736626240829,-500.0,0.00011679,2]
[348570218,1736626240838,-500.0,0.00011679,2]
[348570219,1736626240847,-500.0,0.00011679,2]
[348570220,1736626240856,-500.0,0.00011679,2]
[348570221,1736626240866,-500.0,0.00011679,2]
[348570222,1736626240877,-500.0,0.00011679,2]
[348570223,1736626240890,-1277.19,0.00011679,2]
[348570224,1736626240899,-500.0,0.00011679,2]
[348570225,1736626240909,-417.65365786,0.00011679,2]
[348570226,1736626240918,-500.0,0.00011679,2]
[348570227,1736626240927,-500.0,0.00011679,2]
[348570228,1736626240936,-500.0,0.00011679,2]
[348570229,1736626240945,-500.0,0.00011679,2]
[348570230,1736626240955,-183.55996104,0.00011679,2]
[348570231,1736626240980,-330.01003896,0.00011679,2]
[348570232,1736626240990,-500.0,0.00011679,2]
[348570233,1736626240999,-500.0,0.00011679,2]
[348570234,1736626241009,-1482.6,0.00011679,2]
[348570235,1736626241019,-962.16238987,0.00011679,2]
[348570236,1736626241031,-18.50761013,0.00011679,2]
[348570237,1736626241040,-500.0,0.00011679,2]
[348570238,1736626241049,-999.0,0.00011679,2]
[348570239,1736626241059,-500.0,0.00011679,2]
[348570240,1736626241068,-500.0,0.00011679,2]
[348570241,1736626241079,-500.0,0.00011679,2]
[348570242,1736626241090,-224.78646607,0.00011679,2]
[348570243,1736626241099,-500.0,0.00011679,2]
[348570244,1736626241108,-612.0,0.00011679,2]
[348570245,1736626241117,-500.0,0.00011679,2]
[348570246,1736626241126,-1004.29,0.00011679,2]
[348570247,1736626241135,-500.0,0.00011679,2]
[348570248,1736626241144,-971.57,0.00011679,2]
[348570249,1736626241152,-469.05575901,0.00011679,2]
[348570250,1736626241161,-609.89280206,0.00011679,2]
[348570251,1736626241170,-500.0,0.00011679,2]
[348570252,1736626241179,-500.0,0.00011679,2]
[348570253,1736626241188,-500.0,0.00011679,2]
[348570254,1736626241197,-205.88,0.00011679,2]
[348570255,1736626241206,-500.0,0.00011679,2]
[348570256,1736626241215,-500.0,0.00011679,2]
[348570257,1736626241224,-1616.84,0.00011679,2]
[348570258,1736626241232,-500.0,0.00011679,2]
[348570259,1736626241241,-885.66,0.00011679,2]
[348570260,1736626241250,-198.60965644,0.00011679,2]
[348570261,1736626241259,-500.0,0.00011679,2]
[348570262,1736626241268,-724.15,0.00011679,2]
[348570263,1736626241277,-500.0,0.00011679,2]
[348570264,1736626241286,-931.42,0.00011679,2]
[348570265,1736626241295,-500.0,0.00011679,2]
[348570266,1736626241304,-500.0,0.00011679,2]
[348570267,1736626241313,-500.0,0.00011679,2]
[348570268,1736626241322,-500.0,0.00011679,2]
[348570269,1736626241331,-624.54,0.00011679,2]
[348570270,1736626241339,-500.0,0.00011679,2]
[348570271,1736626241348,-500.0,0.00011679,2]
[348570272,1736626241358,-213.14715165,0.00011679,2]
[348570273,1736626241366,-538.88,0.00011679,2]
[348570274,1736626241375,-539.06,0.00011679,2]
[348570275,1736626241384,-500.0,0.00011679,2]
[348570276,1736626241392,-1176.92,0.00011679,2]
[348570277,1736626241401,-500.0,0.00011679,2]
[348570278,1736626241410,-500.0,0.00011679,2]
[348570279,1736626241419,-1113.37,0.00011679,2]
[348570280,1736626241428,-500.0,0.00011679,2]
[348570281,1736626241437,-275.49,0.00011679,2]
[348570282,1736626241446,-500.0,0.00011679,2]
[348570283,1736626241455,-500.0,0.00011679,2]
[348570284,1736626241465,-545.43,0.00011679,2]
[348570285,1736626241474,-500.0,0.00011679,2]
[348570286,1736626241483,-500.0,0.00011679,2]
[348570287,1736626241492,-860.79,0.00011679,2]
[348570288,1736626241502,-1052.5,0.00011679,2]
[348570289,1736626241511,-1109.89,0.00011679,2]
[348570290,1736626241521,-500.0,0.00011679,2]
[348570291,1736626241530,-500.0,0.00011679,2]
[348570292,1736626241539,-500.0,0.00011679,2]
[348570293,1736626241548,-996.26,0.0001168,2]
[348570294,1736626241557,-426726.10589011,0.0001168,2]
[348570295,1736626241569,-2123.30950307,0.0001168,2]
[348570296,1736626241580,-316.17,0.0001168,2]
[348570297,1736626241591,-352.10604785,0.0001168,2]
[348570298,1736626241610,-449.500001,0.0001168,2]
[348570299,1736626241620,-736.57390145,0.0001168,2]
[348570300,1736626241631,-618.90086075,0.0001168,2]
[348570301,1736626241642,-400.97885,0.0001168,2]
[348570302,1736626241653,-480.891175,0.0001168,2]
[348570303,1736626241664,-528.69395831,0.0001168,2]
[348570304,1736626241675,-464.54032843,0.0001168,2]
[348570305,1736626241686,-22499.44337261,0.0001168,2]
[348570306,1736626241696,-3411.00728237,0.0001168,2]
[348570307,1736626241707,-576.74483752,0.0001168,2]
[348570308,1736626241724,-13260.0,0.0001168,2]
[348570309,1736626241737,-2041.8,0.0001168,2]
[348570310,1736626241747,-1085.0219015,0.0001168,2]
[348570311,1736626241759,-689.32368187,0.0001168,2]
[348570312,1736626241769,-10307.57774289,0.0001168,2]
[348570313,1736626241781,-61459.36125167,0.0001168,2]
[348570314,1736626241791,-587.0,0.00011692,2]
[348570315,1736626241799,-500.0,0.00011803,2]
[348570316,1736626241808,-500.0,0.00011803,2]
[348570317,1736626241818,-248.18,0.00011804,2]
[348570318,1736626241827,-500.0,0.00011804,2]
[348570319,1736626241836,-500.0,0.00011804,2]
[348570320,1736626241845,-500.0,0.00011804,2]
[348570321,1736626241854,-500.0,0.00011804,2]
[348570322,1736626241863,-557.95,0.00011804,2]
[348570323,1736626241873,-735.98,0.00011804,2]
[348570324,1736626241886,-928.98,0.00011804,2]
[348570325,1736626241895,-500.0,0.00011804,2]
[348570326,1736626241904,-500.0,0.00011804,2]
[348570327,1736626241913,-500.0,0.00011804,2]
[348570328,1736626241923,-600.71,0.00011804,2]
[348570329,1736626241932,-500.0,0.00011804,2]
[348570330,1736626241941,-500.0,0.00011804,2]
[348570331,1736626241950,-500.0,0.00011804,2]
[348570332,1736626241959,-500.0,0.00011804,2]
[348570333,1736626241969,-500.0,0.00011804,2]
[348570334,1736626241978,-500.0,0.00011804,2]
[348570335,1736626241989,-500.0,0.00011804,2]
[348570336,1736626241998,-500.0,0.00011805,2]
[348570337,1736626242007,-500.0,0.00011805,2]
[348570338,1736626242017,-500.0,0.00011805,2]
[348570339,1736626242026,-547.57,0.00011805,2]
[348570340,1736626242035,-500.0,0.00011805,2]
[348570341,1736626242045,-500.0,0.00011806,2]
[348570342,1736626242054,-634.83,0.00011806,2]
[348570343,1736626242063,-500.0,0.00011806,2]
[348570344,1736626242072,-559.24,0.00011806,2]
[348570345,1736626242081,-735.88,0.00011806,2]
[348570346,1736626242090,-2559.91,0.00011806,2]
[348570347,1736626242099,-500.0,0.00011806,2]
[348570348,1736626242108,-500.0,0.00011806,2]
[348570349,1736626242118,-709.97,0.00011806,2]
[348570350,1736626242127,-500.0,0.00011806,2]
[348570351,1736626242136,-531.06,0.00011806,2]
[348570352,1736626242145,-500.0,0.00011806,2]
[348570353,1736626242154,-500.0,0.00011806,2]
[348570354,1736626242163,-500.0,0.00011806,2]
[348570355,1736626242172,-500.0,0.00011833,2]
[348570356,1736626242181,-500.0,0.00011853,2]
[348570357,1736626242190,-500.0,0.00011861,2]
[348570358,1736626242199,-16005.87286769,0.0001188,2]
[348570359,1736626242210,-8612.37163738,0.0001188,2]
[348570360,1736626242219,-642.731,0.00011888,2]
[348570361,1736626242228,-5000.0,0.000119,2]
[348570362,1736626242239,-150.0,0.00011922,2]
[348570363,1736626242248,-150.0,0.00011928,2]
[348570364,1736626242419,-150.0,0.00011939,2]
[348570365,1736626242430,-500.0,0.00011953,2]
[348570366,1736626242439,-500.0,0.00011953,2]
[348570367,1736626242449,-500.0,0.00011953,2]
[348570368,1736626242458,-500.0,0.00011953,2]
[348570369,1736626242467,-500.0,0.00011953,2]
[348570370,1736626242477,-500.0,0.00011953,2]
[348570371,1736626242486,-500.0,0.00011953,2]
[348570372,1736626242495,-500.0,0.00011953,2]
[348570373,1736626242504,-500.0,0.00011953,2]
[348570374,1736626242513,-500.0,0.00011953,2]
[348570375,1736626242522,-500.0,0.00011953,2]
[348570376,1736626242531,-500.0,0.00011953,2]
[348570377,1736626242541,-500.0,0.00011953,2]
[348570378,1736626242550,-500.0,0.00011953,2]
[348570379,1736626242559,-500.0,0.00011953,2]
[348570380,1736626242568,-500.0,0.00011953,2]
[348570381,1736626242577,-500.0,0.00011953,2]
[348570382,1736626242587,-500.0,0.00011953,2]
[348570383,1736626242596,-500.0,0.00011953,2]
[348570384,1736626242605,-622.27,0.00011953,2]
[348570385,1736626242615,-500.0,0.00011953,2]
[348570386,1736626242624,-500.0,0.00011953,2]
[348570387,1736626242633,-500.0,0.00011953,2]
[348570388,1736626242642,-500.0,0.00011953,2]
[348570389,1736626242651,-500.0,0.00011953,2]
[348570390,1736626242660,-500.0,0.00011953,2]
[348570391,1736626242669,-500.0,0.00011953,2]
[348570392,1736626242678,-578.52,0.00011953,2]
[348570393,1736626242688,-1463.97,0.00011953,2]
[348570394,1736626242697,-500.0,0.00011953,2]
[348570395,1736626242706,-583.98,0.00011953,2]
[348570396,1736626242715,-931.98,0.00011953,2]
[348570397,1736626242725,-500.0,0.00011953,2]
[348570398,1736626242734,-2629.95,0.00011953,2]
[348570399,1736626242743,-616.73,0.00011953,2]
[348570400,1736626242752,-500.0,0.00011953,2]
[348570401,1736626242761,-873.51,0.00011953,2]
[348570402,1736626242770,-500.0,0.00011953,2]
[348570403,1736626242779,-500.0,0.00011953,2]
[348570404,1736626242789,-500.0,0.00011953,2]
[348570405,1736626242798,-534.91,0.00011953,2]
[348570406,1736626242808,-500.0,0.00011953,2]
[348570407,1736626242817,-1529.45,0.00011953,2]
[348570408,1736626242827,-222.36,0.00011953,2]
[348570409,1736626242836,-500.0,0.00011953,2]
[348570410,1736626242845,-1277.19,0.00011953,2]
[348570411,1736626242854,-500.0,0.00011953,2]
[348570412,1736626242864,-1482.6,0.00011953,2]
[348570413,1736626242874,-980.67,0.00011953,2]
[348570414,1736626242885,-154.52,0.00011953,2]
[348570415,1736626242895,-500.0,0.00011953,2]
[348570416,1736626242904,-500.0,0.00011953,2]
[348570417,1736626242913,-1004.29,0.00011953,2]
[348570418,1736626242923,-612.0,0.00011953,2]
[348570419,1736626242932,-971.57,0.00011953,2]
[348570420,1736626242942,-177.08,0.00011953,2]
[348570421,1736626242951,-500.0,0.00011953,2]
[348570422,1736626242960,-500.0,0.00011953,2]
[348570423,1736626242970,-1616.84,0.00011953,2]
[348570424,1736626242979,-885.66,0.00011953,2]
[348570425,1736626242989,-724.15,0.00011953,2]
[348570426,1736626242998,-931.42,0.00011953,2]
[348570427,1736626243008,-624.54,0.00011953,2]
[348570428,1736626243018,-500.0,0.00011953,2]
[348570429,1736626243028,-538.88,0.00011953,2]
[348570430,1736626243038,-539.06,0.00011953,2]
[348570432,1736626243048,-500.0,0.00011953,2]
[348570435,1736626243057,-1176.92,0.00011953,2]
[348570437,1736626243067,-500.0,0.00011953,2]
[348570439,1736626243076,-500.0,0.00011953,2]
[348570441,1736626243086,-1113.37,0.00011953,2]
[348570443,1736626243094,-500.0,0.00011953,2]
[348570444,1736626243103,-500.0,0.00011953,2]
[348570445,1736626243112,-545.43,0.00011953,2]
[348570446,1736626243121,-500.0,0.00011953,2]
[348570447,1736626243130,-860.79,0.00011953,2]
[348570448,1736626243140,-1052.5,0.00011953,2]
[348570449,1736626243149,-1109.89,0.00011953,2]
[348570450,1736626243157,-500.0,0.00011953,2]
[348570451,1736626243167,-371.98,0.00011953,2]
[348570452,1736626243176,-500.0,0.00011953,2]
[348570453,1736626243186,-150.0,0.00011957,2]
[348570454,1736626243196,-150.0,0.0001197,2]
[348570455,1736626243206,-12.95168259,0.00011973,2]
[348570456,1736626243384,-137.04831741,0.00011973,2]
[348570457,1736626243395,-150.0,0.00011979,2]
[348570458,1736626243406,-150.0,0.00011983,2]
[348570459,1736626243415,-150.0,0.00011984,2]
[348570460,1736626243427,-150.0,0.00011987,2]
[348570461,1736626243437,-86.38268259,0.00011987,2]
[348570462,1736626243448,-63.61731741,0.00011987,2]
[348570463,1736626243457,-150.0,0.00011988,2]
[348570464,1736626243466,-150.0,0.00011993,2]
[348570465,1736626243476,-145.98268251,0.00011998,2]
[348570469,1736626243550,-4.01731749,0.00011998,2]
[348570472,1736626243560,-150.0,0.00011999,2]
[348570473,1736626243569,-3546.26948177,0.00012,2]
[348570476,1736626243580,-305.377365,0.00012,2]
[348570478,1736626243591,-1153.35315323,0.00012,2]
[348570480,1736626243600,-121.26196343,0.00012,2]
[348570482,1736626243611,-7987.88336165,0.00012,2]
[348570484,1736626243620,-8213.47954837,0.00012,2]
[348570486,1736626243631,-10184.65356506,0.00012,2]
[348570488,1736626243641,-495.6,0.00012,2]
[348570490,1736626243653,-3236.23299999,0.00012,2]
[348570492,1736626243664,-466.80026734,0.00012,2]
[348570498,1736626243860,-150.0,0.00011943,2]
[348570499,1736626243870,-3426.9,0.00012,2]
[348570500,1736626243885,-14446.45335528,0.00012,2]
[348570501,1736626243907,-3098.01502295,0.00012,2]
[348570502,1736626243919,-500.0,0.00012,2]
[348570503,1736626243930,-86265.64465991,0.00012,2]
[348570504,1736626243939,-150.0,0.00012003,2]
[348570505,1736626243949,-150.0,0.00012007,2]
[348570506,1736626243958,-150.0,0.00012012,2]
[348570507,1736626243969,-150.0,0.00012023,2]
[348570508,1736626243978,-150.0,0.00012023,2]
[348570509,1736626243987,-835.67960349,0.00012029,2]
[348570510,1736626243996,-150.0,0.00012029,2]
[348570511,1736626244006,-538.0,0.0001203,2]
[348570512,1736626244015,-152.52,0.0001203,2]
[348570513,1736626244025,-150.0,0.00012036,2]
[348570514,1736626244036,-150.0,0.00012043,2]
[348570515,1736626244046,-150.0,0.00012051,2]
[348570516,1736626244056,-150.0,0.00012054,2]
[348570517,1736626244067,-200.0,0.00012055,2]
[348570518,1736626244077,-150.0,0.00012055,2]
[348570519,1736626244086,-150.0,0.00012058,2]
[348570520,1736626244095,-150.0,0.0001206,2]
[348570521,1736626244105,-150.0,0.0001206,2]
[348570522,1736626244114,-1500.0,0.00012065,2]
[348570523,1736626244124,-500.0,0.00012077,2]
[348570524,1736626244134,-500.0,0.00012077,2]
[348570525,1736626244143,-500.0,0.00012078,2]
[348570526,1736626244153,-500.0,0.00012078,2]
[348570527,1736626244162,-500.0,0.00012078,2]
[348570528,1736626244171,-500.0,0.00012078,2]
[348570529,1736626244181,-557.95,0.00012078,2]
[348570530,1736626244190,-735.98,0.00012078,2]
[348570531,1736626244199,-928.98,0.00012078,2]
[348570532,1736626244208,-500.0,0.00012078,2]
[348570533,1736626244218,-500.0,0.00012078,2]
[348570534,1736626244227,-500.0,0.00012078,2]
[348570535,1736626244237,-600.71,0.00012078,2]
[348570536,1736626244246,-500.0,0.00012078,2]
[348570537,1736626244256,-500.0,0.00012078,2]
[348570538,1736626244265,-500.0,0.00012078,2]
[348570539,1736626244274,-500.0,0.00012078,2]
[348570540,1736626244284,-260.45512025,0.00012078,2]
[348570541,1736626244295,-500.0,0.00012078,2]
[348570542,1736626244304,-500.0,0.00012078,2]
[348570543,1736626244314,-500.0,0.00012079,2]
[348570544,1736626244323,-500.0,0.00012079,2]
[348570545,1736626244333,-500.0,0.00012079,2]
[348570546,1736626244343,-547.57,0.00012079,2]
[348570547,1736626244352,-500.0,0.00012079,2]
[348570548,1736626244361,-500.0,0.0001208,2]
[348570549,1736626244370,-634.83,0.0001208,2]
[348570550,1736626244380,-559.24,0.0001208,2]
[348570551,1736626244389,-735.88,0.0001208,2]
[348570552,1736626244399,-2559.91,0.0001208,2]
[348570553,1736626244408,-500.0,0.0001208,2]
[348570554,1736626244417,-456.71504749,0.0001208,2]
[348570555,1736626244426,-709.97,0.0001208,2]
[348570556,1736626244436,-500.0,0.0001208,2]
[348570557,1736626244445,-531.06,0.0001208,2]
[348570558,1736626244454,-500.0,0.0001208,2]
[348570559,1736626244463,-500.0,0.0001208,2]
[348570560,1736626244473,-1500.0,0.00012083,2]
[348570561,1736626244483,-150.0,0.00012086,2]
[348570562,1736626244492,-150.0,0.00012087,2]
[348570563,1736626244501,-150.0,0.00012091,2]
[348570564,1736626244510,-150.0,0.00012092,2]
[348570565,1736626244519,-150.0,0.00012092,2]
[348570566,1736626244529,-150.0,0.00012094,2]
[348570567,1736626244538,-150.0,0.00012095,2]
[348570568,1736626244547,-150.0,0.00012096,2]
[348570569,1736626244556,-1423.33,0.000121,3]
[348570570,1736626244565,-3000.0,0.000121,2]
[348570571,1736626244574,-150.0,0.00012102,2]
[348570572,1736626244584,-20000.0,0.00012104,2]
[348570573,1736626244593,-150.0,0.00012117,2]
[348570574,1736626244602,-150.0,0.00012118,2]
[348570575,1736626244612,-500.0,0.00012127,2]
[348570576,1736626244621,-150.0,0.00012128,2]
[348570577,1736626244630,-150.0,0.0001213,2]
[348570578,1736626244639,-150.0,0.00012131,2]
[348570579,1736626244648,-150.0,0.00012157,2]
[348570580,1736626244698,-150.0,0.00012161,2]
[348570581,1736626244708,-150.0,0.00012169,2]
[348570582,1736626244718,-1500.0,0.00012175,2]
[348570583,1736626244727,-150.0,0.00012176,2]
[348570584,1736626244736,-150.0,0.00012177,2]
[348570585,1736626244746,-150.0,0.00012177,2]
[348570586,1736626244755,-150.0,0.00012178,2]
[348570587,1736626244764,-150.0,0.00012179,2]
[348570588,1736626244773,-1478.11174537,0.0001218,2]
[348570589,1736626244782,-150.0,0.0001218,2]
[348570590,1736626244791,-150.0,0.00012182,2]
[348570591,1736626244800,-150.0,0.00012182,2]
[348570592,1736626244810,-150.0,0.00012189,2]
[348570593,1736626244819,-150.0,0.00012189,2]
[348570594,1736626244828,-150.0,0.0001219,2]
[348570595,1736626244837,-150.0,0.00012197,2]
[348570596,1736626244847,-150.0,0.00012201,2]
[348570597,1736626244856,-150.0,0.00012201,2]
[348570598,1736626244866,-150.0,0.00012204,2]
[348570599,1736626244879,-150.0,0.00012218,2]
[348570600,1736626244888,-150.0,0.00012221,2]
[348570601,1736626244897,-150.0,0.00012225,2]
[348570602,1736626244906,-150.0,0.00012225,2]
[348570603,1736626244916,-500.0,0.00012227,2]
[348570604,1736626244925,-500.0,0.00012227,2]
[348570605,1736626244934,-500.0,0.00012227,2]
[348570606,1736626244943,-500.0,0.00012227,2]
[348570607,1736626244953,-500.0,0.00012227,2]
[348570608,1736626244961,-500.0,0.00012227,2]
[348570609,1736626244970,-500.0,0.00012227,2]
[348570610,1736626244980,-500.0,0.00012227,2]
[348570611,1736626244991,-500.0,0.00012227,2]